fUSD/lending_fUSD_20260324
["ID","MTS","AMOUNT","RATE_DAILY","PERIOD"]
[408882105,1774385437752,-500.0,0.0001506,2]
[408882106,1774385437762,-500.0,0.0001506,2]
[408882107,1774385437771,-500.0,0.0001506,2]
[408882108,1774385437780,-500.0,0.0001506,2]
[408882110,1774385437790,-500.0,0.0001506,2]
[408882111,1774385437803,-531.3420411,0.0001506,2]
[408882113,1774385437812,-338.47316987,0.0001506,2]
[408882114,1774385437821,-500.0,0.0001506,2]
[408882115,1774385437831,-500.0,0.0001506,2]
[408882116,1774385437840,-411.74553912,0.0001506,2]
[408882118,1774385437849,-500.0,0.0001506,2]
[408882120,1774385437858,-500.0,0.0001506,2]
[408882122,1774385437867,-500.0,0.0001506,2]
[408882123,1774385437876,-616.72336867,0.0001506,2]
[408882124,1774385437884,-358.38566764,0.0001506,2]
[408882125,1774385437893,-265.68221303,0.0001506,2]
[408882126,1774385437902,-500.0,0.0001506,2]
[408882127,1774385437911,-500.0,0.0001506,2]
[408882128,1774385437921,-500.0,0.0001506,2]
[408882129,1774385437930,-500.0,0.0001506,2]
[408882130,1774385437940,-205.09745225,0.0001506,2]
[408882131,1774385437949,-473.4787547,0.0001506,2]
[408882132,1774385437958,-500.0,0.0001506,2]
[408882133,1774385437967,-281.96304668,0.0001506,2]
[408882134,1774385437976,-500.0,0.0001506,2]
[408882135,1774385437985,-336.61258847,0.0001506,2]
[408882136,1774385437995,-278.30424113,0.0001506,2]
[408882137,1774385438004,-189.92483308,0.0001506,2]
[408882138,1774385438013,-337.92671637,0.0001506,2]
[408882139,1774385438023,-398.6694,0.0001506,2]
[408882140,1774385438032,-500.0,0.0001506,2]
[408882141,1774385438043,-574.17674946,0.0001506,2]
[408882142,1774385438053,-500.0,0.0001506,2]
[408882143,1774385438066,-500.0,0.0001506,2]
[408882144,1774385438076,-500.0,0.0001506,2]
[408882145,1774385438085,-500.0,0.0001506,2]
[408882146,1774385438094,-500.0,0.0001506,2]
[408882147,1774385438103,-500.0,0.0001506,2]
[408882148,1774385438113,-500.0,0.0001506,2]
[408882149,1774385438122,-500.0,0.0001506,2]
[408882150,1774385438131,-500.0,0.0001506,2]
[408882151,1774385438140,-500.0,0.0001506,2]
[408882152,1774385438149,-500.0,0.0001506,2]
[408882153,1774385438158,-500.0,0.0001506,2]
[408882154,1774385438167,-500.0,0.0001506,2]
[408882155,1774385438178,-500.0,0.0001506,2]
[408882156,1774385438189,-500.0,0.0001506,2]
[408882157,1774385438199,-500.0,0.0001506,2]
[408882158,1774385438208,-500.0,0.0001506,2]
[408882159,1774385438218,-500.0,0.0001506,2]
[408882160,1774385438229,-500.0,0.0001506,2]
[408882161,1774385438240,-500.0,0.0001506,2]
[408882162,1774385438250,-500.0,0.0001506,2]
[408882163,1774385438259,-500.0,0.0001506,2]
[408882164,1774385438268,-500.0,0.0001506,2]
[408882165,1774385438277,-500.0,0.0001506,2]
[408882166,1774385438286,-500.0,0.0001506,2]
[408882167,1774385438296,-500.0,0.0001506,2]
[408882168,1774385438305,-500.0,0.0001506,2]
[408882169,1774385438316,-500.0,0.0001506,2]
[408882170,1774385438325,-500.0,0.0001506,2]
[408882171,1774385438336,-500.0,0.0001506,2]
[408882172,1774385438346,-500.0,0.0001506,2]
[408882173,1774385438357,-500.0,0.0001506,2]
[408882174,1774385438367,-500.0,0.0001506,2]
[408882175,1774385438378,-192.37523674,0.0001506,2]
[408882176,1774385438387,-500.0,0.0001506,2]
[408882177,1774385438396,-500.0,0.0001506,2]
[408882178,1774385438408,-500.0,0.0001506,2]
[408882179,1774385438418,-500.0,0.0001506,2]
[408882180,1774385438427,-500.0,0.0001506,2]
[408882181,1774385438438,-500.0,0.0001506,2]
[408882182,1774385438451,-500.0,0.0001506,2]
[408882183,1774385438462,-500.0,0.0001506,2]
[408882184,1774385438472,-500.0,0.0001506,2]
[408882185,1774385438483,-500.0,0.0001506,2]
[408882186,1774385438496,-500.0,0.0001506,2]
[408882187,1774385438506,-500.0,0.0001506,2]
[408882188,1774385438515,-500.0,0.0001506,2]
[408882189,1774385438525,-500.0,0.0001506,2]
[408882190,1774385438535,-500.0,0.0001506,2]
[408882191,1774385438544,-500.0,0.0001506,2]
[408882192,1774385438553,-500.0,0.0001506,2]
[408882193,1774385438562,-500.0,0.0001506,2]
[408882194,1774385438571,-500.0,0.0001506,2]
[408882195,1774385438580,-500.0,0.0001506,2]
[408882196,1774385438589,-500.0,0.0001506,2]
[408882197,1774385438599,-500.0,0.0001506,2]
[408882198,1774385438609,-500.0,0.0001506,2]
[408882199,1774385438619,-500.0,0.0001506,2]
[408882200,1774385438628,-500.0,0.0001506,2]
[408882201,1774385438637,-650.0,0.0001506,2]
[408882202,1774385438646,-500.0,0.0001506,2]
[408882203,1774385438655,-399.67,0.00015072,2]
[408882204,1774385438663,-265.51245262,0.00015072,2]
[408882205,1774385438672,-500.0,0.00015073,2]
[408882206,1774385438681,-500.0,0.00015073,2]
[408882207,1774385438690,-500.0,0.00015073,2]
[408882208,1774385438699,-591.58519453,0.00015073,2]
[408882209,1774385438708,-500.0,0.00015073,2]
[408882210,1774385438717,-504.19292087,0.00015073,2]
[408882211,1774385438726,-499.91265482,0.00015073,2]
[408882212,1774385438736,-500.0,0.00015073,2]
[408882213,1774385438746,-500.0,0.00015073,2]
[408882214,1774385438756,-160.23635547,0.00015073,2]
[408882215,1774385438765,-161.41271837,0.00015073,2]
[408882216,1774385438774,-160.21582819,0.00015073,2]
[408882217,1774385438784,-500.0,0.00015073,2]
[408882218,1774385438793,-500.0,0.00015073,2]
[408882219,1774385438802,-500.0,0.00015073,2]
[408882220,1774385438811,-500.37949431,0.00015073,2]
[408882221,1774385438820,-500.86404044,0.00015073,2]
[408882222,1774385438829,-500.0,0.00015073,2]
[408882223,1774385438838,-500.0,0.00015073,2]
[408882224,1774385438847,-500.0,0.00015073,2]
[408882225,1774385438856,-500.0,0.00015073,2]
[408882226,1774385438865,-500.0,0.00015073,2]
[408882227,1774385438874,-500.0,0.00015073,2]
[408882228,1774385438884,-12971.99212024,0.00015075,2]
[408882229,1774385438893,-809.0,0.00015088,2]
[408882230,1774385438902,-805.94639469,0.00015104,2]
[408882231,1774385438911,-571.22691104,0.00015128,2]
[408882232,1774385438920,-12971.99212024,0.00015178,2]
[408882233,1774385438929,-578.20924308,0.00015195,2]
[408882234,1774385438939,-151.0,0.00015195,2]
[408882235,1774385438948,-500.0,0.00015195,2]
[408882236,1774385438958,-9552.16786547,0.00015195,2]
[408882237,1774385438967,-500.0,0.00015195,2]
[408882238,1774385438977,-721.12765535,0.00015195,2]
[408882239,1774385438987,-500.0,0.00015195,2]
[408882240,1774385438998,-500.0,0.00015195,2]
[408882241,1774385439007,-500.0,0.00015195,2]
[408882242,1774385439017,-500.0,0.00015195,2]
[408882243,1774385439026,-500.0,0.00015195,2]
[408882244,1774385439035,-500.0,0.00015195,2]
[408882245,1774385439045,-500.0,0.00015195,2]
[408882246,1774385439054,-500.0,0.00015195,2]
[408882247,1774385439063,-500.0,0.00015195,2]
[408882248,1774385439073,-500.0,0.00015195,2]
[408882249,1774385439083,-500.0,0.00015195,2]
[408882250,1774385439094,-500.0,0.00015195,2]
[408882251,1774385439104,-500.0,0.00015195,2]
[408882252,1774385439114,-500.0,0.00015195,2]
[408882253,1774385439124,-500.0,0.00015195,2]
[408882254,1774385439134,-200.0,0.00015195,2]
[408882255,1774385439144,-500.0,0.00015195,2]
[408882256,1774385439154,-500.0,0.00015195,2]
[408882257,1774385439164,-500.0,0.00015195,2]
[408882258,1774385439174,-174.61919141,0.00015195,2]
[408882259,1774385439183,-500.0,0.00015195,2]
[408882260,1774385439192,-500.0,0.00015195,2]
[408882261,1774385439200,-151.0,0.00015195,2]
[408882262,1774385439209,-500.0,0.00015195,2]
[408882263,1774385439218,-500.0,0.00015195,2]
[408882264,1774385439227,-500.0,0.00015195,2]
[408882265,1774385439236,-500.0,0.00015195,2]
[408882266,1774385439245,-500.0,0.00015195,2]
[408882267,1774385439254,-500.0,0.00015195,2]
[408882268,1774385439263,-500.0,0.00015195,2]
[408882269,1774385439272,-500.0,0.00015195,2]
[408882270,1774385439282,-500.0,0.00015195,2]
[408882271,1774385439291,-500.0,0.00015195,2]
[408882272,1774385439300,-500.0,0.00015195,2]
[408882273,1774385439309,-500.0,0.00015195,2]
[408882274,1774385439319,-151.0,0.00015195,2]
[408882275,1774385439328,-156.587,0.00015195,2]
[408882276,1774385439337,-194.37971726,0.00015195,2]
[408882277,1774385439347,-693.3919763,0.00015195,2]
[408882278,1774385439356,-262.90206542,0.00015195,2]
[408882279,1774385439365,-209.40437684,0.00015195,2]
[408882280,1774385439374,-250.0,0.00015195,2]
[408882281,1774385439384,-250.0,0.00015195,2]
[408882282,1774385439393,-250.0,0.00015195,2]
[408882283,1774385439402,-279.9045709,0.00015195,2]
[408882284,1774385439412,-250.0,0.00015195,2]
[408882285,1774385439421,-250.0,0.00015195,2]
[408882286,1774385439430,-250.0,0.00015195,2]
[408882287,1774385439439,-250.0,0.00015195,2]
[408882288,1774385439454,-250.0,0.00015195,2]
[408882289,1774385439463,-250.0,0.00015195,2]
[408882290,1774385439472,-250.0,0.00015195,2]
[408882291,1774385439482,-250.0,0.00015195,2]
[408882292,1774385439493,-743.50770149,0.00015195,2]
[408882293,1774385439503,-500.0,0.00015195,2]
[408882294,1774385439513,-500.0,0.00015195,2]
[408882295,1774385439525,-500.0,0.00015195,2]
[408882296,1774385439535,-500.0,0.00015195,2]
[408882297,1774385439546,-500.0,0.00015195,2]
[408882298,1774385439555,-150.0,0.000152,2]
[408882299,1774385439564,-990.448404,0.000152,2]
[408882300,1774385439575,-1100.0,0.000152,5]
[408882301,1774385439587,-5076.0,0.00015222,2]
[408882302,1774385439596,-189.681969,0.00015225,7]
[408882303,1774385439605,-290.528405,0.00015236,7]
[408882304,1774385439615,-9905.5980765,0.0001525,2]
[408882305,1774385439625,-500.0,0.0001525,2]
[408882306,1774385439634,-151.0,0.0001525,2]
[408882307,1774385439642,-272.62944185,0.0001525,2]
[408882308,1774385439652,-500.0,0.00015259,2]
[408882309,1774385439661,-500.0,0.00015259,2]
[408882310,1774385439670,-500.0,0.00015259,2]
[408882311,1774385439679,-500.0,0.00015259,2]
[408882312,1774385439689,-534.8771196,0.00015259,2]
[408882313,1774385439698,-500.0,0.00015259,2]
[408882314,1774385439707,-500.0,0.00015259,2]
[408882315,1774385439716,-500.0,0.00015259,2]
[408882316,1774385439725,-500.0,0.00015259,2]
[408882317,1774385439734,-500.0,0.00015259,2]
[408882318,1774385439745,-500.0,0.00015259,2]
[408882319,1774385439754,-500.0,0.00015259,2]
[408882320,1774385439764,-500.0,0.00015259,2]
[408882321,1774385439775,-500.0,0.00015259,2]
[408882322,1774385439786,-500.0,0.00015259,2]
[408882323,1774385439796,-500.0,0.00015259,2]
[408882324,1774385439806,-500.0,0.00015259,2]
[408882325,1774385439816,-805.94639469,0.00015263,2]
[408882326,1774385439825,-176.319119,0.00015279,7]
[408882327,1774385439835,-12971.99212024,0.00015281,2]
[408882328,1774385439846,-571.22691104,0.00015282,2]
[408882329,1774385439857,-1500.0,0.000153,5]
[408882330,1774385439867,-10272.10520533,0.00015305,2]
[408882331,1774385439876,-500.0,0.00015305,2]
[408882332,1774385439885,-151.0,0.00015305,2]
[408882333,1774385439894,-282.71673119,0.00015305,2]
[408882334,1774385439903,-423.0,0.00015315,2]
[408882335,1774385439912,-888.59,0.00015334,2]
[408882336,1774385439922,-160.0,0.0001534,7]
[408882337,1774385439931,-245.562121,0.0001534,7]
[408882338,1774385439940,-331.124243,0.0001534,7]
[408882339,1774385439950,-1569.0,0.0001536,2]
[408882340,1774385439959,-10652.17309792,0.0001536,2]
[408882341,1774385439969,-500.0,0.0001536,2]
[408882342,1774385439978,-151.0,0.0001536,2]
[408882343,1774385439988,-12971.99212024,0.00015384,2]
[408882344,1774385439997,-1800.0,0.000154,5]
[408882345,1774385440006,-11046.30350255,0.00015415,2]
[408882346,1774385440015,-500.0,0.00015415,2]
[408882347,1774385440024,-151.0,0.00015415,2]
[408882348,1774385440034,-1000.0,0.00015421,2]
[408882349,1774385440043,-197.81018147,0.00015421,2]
[408882350,1774385440052,-1000.0,0.00015421,2]
[408882351,1774385440061,-1000.0,0.00015421,2]
[408882352,1774385440070,-1000.0,0.00015421,2]
[408882353,1774385440080,-805.94639469,0.00015422,2]
[408882354,1774385440089,-809.0,0.00015423,2]
[408882355,1774385440098,-166.66,0.00015431,2]
[408882356,1774385440108,-972.34,0.00015436,2]
[408882357,1774385440117,-278.9250871,0.00015436,2]
[408882358,1774385440127,-571.22691104,0.00015437,2]
[408882359,1774385440135,-1680.0,0.00015464,2]
[408882360,1774385440144,-809.0,0.00015468,2]
[408882361,1774385440154,-250.0,0.00015469,2]
[408882362,1774385440164,-11455.01673214,0.0001547,2]
[408882363,1774385440174,-500.0,0.0001547,2]
[408882364,1774385440194,-151.0,0.0001547,2]
[408882365,1774385440204,-500.0,0.00015473,2]
[408882366,1774385440213,-500.0,0.00015473,2]
[408882367,1774385440223,-350.0,0.0001548,2]
[408882368,1774385440232,-12971.99212024,0.00015488,2]
[408882369,1774385440242,-909.0,0.00015493,2]
[408882370,1774385440252,-300.0,0.000155,5]
[408882371,1774385440261,-809.0,0.000155,2]
[408882372,1774385440270,-2708.84661117,0.00015525,2]
[408882373,1774385440280,-6852.5277646,0.00015535,2]
[408882374,1774385440289,-1000.0,0.00015536,2]
[408882375,1774385440298,-1000.0,0.00015536,2]
[408882376,1774385440308,-1000.0,0.00015536,2]
[408882377,1774385440317,-1000.0,0.00015536,2]
[408882378,1774385440326,-809.0,0.00015547,2]
[408882379,1774385440335,-399.69,0.00015555,2]
[408882380,1774385440344,-423.02,0.00015555,2]
[408882381,1774385440353,-255.0,0.00015572,2]
[408882382,1774385440363,-413.84,0.00015581,2]
[408882383,1774385440372,-805.94639469,0.00015581,2]
[408882384,1774385440381,-809.0,0.00015586,2]
[408882385,1774385440390,-12971.99212024,0.00015591,2]
[408882386,1774385440400,-571.22691104,0.00015591,2]
[408882387,1774385440409,-160.0,0.00015595,2]
[408882388,1774385440418,-979.16666667,0.00015595,2]
[408882389,1774385440428,-160.0,0.00015595,2]
[408882390,1774385440437,-300.0,0.000156,5]
[408882391,1774385440447,-809.0,0.00015606,2]
[408882392,1774385440459,-888.59,0.00015608,2]
[408882393,1774385440468,-382.44369691,0.00015621,2]
[408882394,1774385440477,-1000.0,0.00015621,2]
[408882395,1774385440487,-1000.0,0.00015621,2]
[408882396,1774385440498,-429.84899427,0.00015621,2]
[408882397,1774385440507,-903.17353576,0.00015621,2]
[408882398,1774385440516,-500.84657428,0.00015621,2]
[408882399,1774385440526,-500.52131154,0.00015621,2]
[408882400,1774385440535,-1000.0,0.00015621,2]
[408882401,1774385440549,-1001.42929364,0.00015621,2]
[408882402,1774385440558,-1000.0,0.00015621,2]
[408882403,1774385440568,-1000.0,0.00015621,2]
[408882404,1774385440577,-909.0,0.00015652,2]
[408882405,1774385440587,-32971.9663,0.00015653,2]
[408882406,1774385440596,-1492.76679653,0.0001568,2]
[408882407,1774385440605,-12971.99212024,0.00015694,2]
[408882408,1774385440614,-300.0,0.000157,5]
[408882409,1774385440623,-150.0,0.0001574,2]
[408882410,1774385440632,-805.94639469,0.00015741,2]
[408882411,1774385440965,-2222.8763441,0.00015741,2]
[408882412,1774385440975,-151.0,0.00015743,2]
[408882413,1774385440984,-200.0,0.00015743,2]
[408882414,1774385440994,-181.08010149,0.00015743,2]
[408882415,1774385441003,-719.04747942,0.00015743,2]
[408882416,1774385441013,-217.15233878,0.00015743,2]
[408882417,1774385441022,-290.26104003,0.00015743,2]
[408882418,1774385441031,-771.01748645,0.00015743,2]
[408882419,1774385441041,-571.22691104,0.00015746,2]
[408882420,1774385441050,-631.81161049,0.00015749,2]
[408882421,1774385441059,-500.0,0.00015749,2]
[408882422,1774385441068,-500.0,0.00015749,2]
[408882423,1774385441078,-500.0,0.00015749,2]
[408882424,1774385441087,-420.0,0.00015759,2]
[408882425,1774385441096,-420.0,0.00015759,2]
[408882426,1774385441105,-150.0,0.00015771,2]
[408882427,1774385441115,-500.0,0.00015779,2]
[408882428,1774385441124,-500.0,0.00015779,2]
[408882429,1774385441133,-500.0,0.00015779,2]
[408882430,1774385441142,-207.8534478,0.00015779,2]
[408882431,1774385441151,-500.0,0.00015779,2]
[408882432,1774385441160,-500.0,0.00015779,2]
[408882433,1774385441169,-500.0,0.00015779,2]
[408882434,1774385441178,-500.0,0.00015779,2]
[408882435,1774385441187,-500.0,0.00015779,2]
[408882436,1774385441196,-500.0,0.00015779,2]
[408882437,1774385441205,-500.0,0.00015779,2]
[408882438,1774385441214,-500.0,0.00015779,2]
[408882439,1774385441222,-161.59374025,0.00015779,2]
[408882440,1774385441231,-500.0,0.00015779,2]
[408882441,1774385441241,-500.0,0.00015779,2]
[408882442,1774385441250,-500.0,0.00015779,2]
[408882443,1774385441259,-500.0,0.00015779,2]
[408882444,1774385441268,-623.11598405,0.00015779,2]
[408882445,1774385441277,-500.0,0.00015779,2]
[408882446,1774385441286,-500.0,0.00015779,2]
[408882447,1774385441296,-500.0,0.00015779,2]
[408882448,1774385441305,-255.6572541,0.00015779,2]
[408882449,1774385441315,-12971.99212024,0.00015797,2]
[408882450,1774385441324,-183.815,0.000158,2]
[408882451,1774385441333,-300.0,0.000158,5]
[408882452,1774385441342,-4407.134,0.00015803,2]
[408882453,1774385441351,-909.0,0.00015836,2]
[408882454,1774385441360,-239.57168,0.0001584,2]
[408882455,1774385441370,-239.57168,0.0001584,2]
[408882456,1774385441379,-239.57169,0.0001585,2]
[408882457,1774385441388,-888.59,0.00015882,2]
[408882458,1774385441397,-2000.0,0.0001589,2]
[408882459,1774385441406,-25000.0,0.00015891,3]
[408882460,1774385441416,-500.0,0.00015899,2]
[408882461,1774385441425,-500.0,0.00015899,2]
[408882462,1774385441434,-25000.0,0.000159,3]
[408882463,1774385441444,-10000.0,0.000159,2]
[408882464,1774385441457,-15947.36084928,0.000159,3]
[408882465,1774385441466,-571.22691104,0.000159,2]
[408882466,1774385441475,-2040.0,0.000159,2]
[408882467,1774385441484,-900.0,0.000159,5]
[408882468,1774385441495,-12971.99212024,0.000159,2]
[408882469,1774385441505,-154.60882327,0.000159,2]
[408882470,1774385441515,-172.24879032,0.000159,2]
[408882471,1774385441527,-1340.82213134,0.000159,2]
[408882472,1774385441536,-805.94639469,0.000159,2]
[408882473,1774385441545,-2114.0,0.000159,5]
[408882474,1774385441554,-1699.0,0.000159,5]
[408882475,1774385441563,-909.0,0.00015926,2]
[408882476,1774385441572,-1500.0,0.00015968,2]
[408882477,1774385441581,-1000.0,0.00015968,2]
[408882478,1774385441590,-1500.0,0.00015968,2]
[408882479,1774385441599,-1500.0,0.00015968,2]
[408882480,1774385441608,-9401.0,0.00015973,2]
[408882481,1774385441617,-500.80504455,0.00015973,2]
[408882482,1774385441626,-347.94216551,0.00015973,2]
[408882483,1774385441635,-500.58525136,0.00015973,2]
[408882484,1774385441644,-500.0,0.00015973,2]
[408882485,1774385441653,-500.0,0.00015973,2]
[408882486,1774385441663,-366.41832896,0.00015973,2]
[408882487,1774385441672,-500.0,0.00015973,2]
[408882488,1774385441681,-500.0,0.00015973,2]
[408882489,1774385441691,-500.0,0.00015973,2]
[408882490,1774385441700,-500.0,0.00015973,2]
[408882491,1774385441709,-500.0,0.00015973,2]
[408882492,1774385441719,-500.0,0.00015973,2]
[408882493,1774385441728,-500.0,0.00015973,2]
[408882494,1774385441739,-500.0,0.00015973,2]
[408882495,1774385441749,-500.0,0.00015973,2]
[408882496,1774385441759,-500.0,0.00015973,2]
[408882497,1774385441768,-500.0,0.00015973,2]
[408882498,1774385441777,-500.0,0.00015973,2]
[408882499,1774385441787,-351.2418106,0.00015973,2]
[408882500,1774385441796,-500.0,0.00015973,2]
[408882501,1774385441805,-500.0,0.00015973,2]
[408882502,1774385441814,-500.0,0.00015973,2]
[408882503,1774385441824,-500.0,0.00015973,2]
[408882504,1774385441834,-500.0,0.00015973,2]
[408882505,1774385441843,-500.0,0.00015973,2]
[408882506,1774385441853,-500.0,0.00015973,2]
[408882507,1774385441862,-500.43058459,0.00015973,2]
[408882508,1774385441872,-500.65903266,0.00015973,2]
[408882509,1774385441881,-202.64239025,0.0001599,2]
[408882510,1774385441891,-909.0,0.00015995,2]
[408882511,1774385441900,-163.1309903,0.00015996,3]
[408882512,1774385441910,-151.0,0.00015997,2]
[408882513,1774385441919,-346.30670103,0.00015997,2]
[408882514,1774385441929,-351.58937214,0.00015997,2]
[408882515,1774385441940,-666.0,0.00015999,2]
[408882516,1774385441949,-435.56481257,0.00015999,2]
[408882517,1774385441959,-154.82251136,0.00015999,2]
[408882518,1774385441968,-643559.11288683,0.00016,2]
[408882519,1774385441987,-1906.31029911,0.00016,2]
[408882520,1774385442014,-670.10000021,0.00016,2]
[408882521,1774385442031,-2360.84759173,0.00016,2]
[408882522,1774385442042,-1061.74462267,0.00016,2]
[408882528,1774385442537,-183.100622,0.00015178,7]
[408882529,1774385442546,-278.9250871,0.000159,2]
[408882530,1774385442555,-800.4375351,0.000159,2]
[408882531,1774385442719,-819.38550886,0.000159,2]
[408882532,1774385442728,-3623092.05708748,0.00016,2]
[408882533,1774385442994,-785.81741133,0.00016,2]
[408882534,1774385443007,-2717.91073558,0.00016,2]
[408882535,1774385443018,-14659.08253556,0.00016,2]
[408882536,1774385443030,-410.32677016,0.00016,2]
[408882537,1774385443049,-600.95572524,0.00016,2]
[408882591,1774385446165,-160.0,0.00015178,7]
[408882593,1774385446174,-2244.75354264,0.00016,2]
[408882596,1774385446195,-237.140028,0.00015178,7]
[408882597,1774385446204,-6121.69391891,0.00016,2]
[408882598,1774385446218,-1063.79237422,0.00016,2]
[408882599,1774385446229,-2270.03,0.00016,2]
[408882604,1774386163828,-2989.17651587,0.00013355,2]
[408882605,1774386166821,-2081.04651587,0.00013355,2]
[408882606,1774386166844,-837.91696826,0.00013355,2]
[408882607,1774386169852,-1600.0,0.00013665,2]
[408882608,1774386264378,-5000.01,0.00013625,2]
[408882609,1774386265376,-5000.01,0.00013625,2]
[408882610,1774386267259,-5000.01,0.00013625,2]
[408882611,1774386267396,-5000.01,0.00013625,2]
[408882612,1774386270444,-5000.01,0.00013625,2]
[408882613,1774386270638,-5000.01,0.00013625,2]
[408882614,1774386277172,-5000.01,0.00013625,2]
[408882615,1774386277294,-5000.01,0.00013625,2]
[408882616,1774386279446,-5000.01,0.00013625,2]
[408882617,1774386279899,-5000.01,0.00013625,2]
[408882618,1774386283006,-5000.01,0.00013625,2]
[408882619,1774386283126,-5000.01,0.00013625,2]
[408882620,1774386285483,-5000.01,0.00013625,2]
[408882621,1774386285727,-5000.01,0.00013625,2]
[408882622,1774386288359,-5000.01,0.00013625,2]
[408882623,1774386288463,-5000.01,0.00013625,2]
[408882624,1774386294413,-5000.01,0.00013625,2]
[408882625,1774386300452,-5000.01,0.00013625,2]
[408882626,1774386396134,-200.0,0.000136,2]
[408882627,1774386396156,-1200.0,0.00013624,2]
[408882628,1774386396177,-205.34958512,0.00013624,2]
[408882629,1774386546113,-882.3370318,0.000129,2]
[408882630,1774386546132,-371.29100381,0.000129,2]
[408882631,1774386546151,-624.87446906,0.00012935,2]
[408882632,1774386554129,-237.85748194,0.00012935,2]
[408882633,1774386554150,-19.34806061,0.00013,2]
[408882634,1774386570111,-230.65193939,0.00013,2]
[408882635,1774386570142,-1200.0,0.00013624,2]
[408882636,1774386570172,-300.0,0.00013624,2]
[408882637,1774386570202,-300.0,0.00013624,2]
[408882638,1774386570235,-250.0,0.00013624,2]
[408882639,1774386570266,-1231.48911261,0.00013625,2]
[408882640,1774386581872,167.22,0.00010774,2]
[408882646,1774386631536,-1720.8,0.00013458,2]
[408882648,1774386631547,-2446.34859819,0.00013625,2]
[408882652,1774386631588,-4514.1422892,0.00013625,2]
[408882654,1774386631603,-159.41888911,0.00013636,2]
[408882655,1774386631613,-1200.0,0.00013647,2]
[408882656,1774386631623,-1852.42,0.00013648,2]
[408882657,1774386631646,-300.0,0.00013698,2]
[408882658,1774386631662,-1052.38,0.00013699,2]
[408882659,1774386631673,-371.29100381,0.00013716,2]
[408882660,1774386631683,-405016.12564743,0.00013822,2]
[408882661,1774386631694,-636.26487303,0.00013822,2]
[408882663,1774386631705,-315.42809693,0.00013822,2]
[408882664,1774386631726,-794.49901338,0.00013822,2]
[408882665,1774386631772,-219670.82626923,0.00013822,2]
[408882669,1774386631789,-150.0,0.000139,2]
[408882671,1774386631800,-500.0,0.00013913,2]
[408882673,1774386631817,-200.0,0.00013913,2]
[408882675,1774386631827,-500.0,0.00013913,2]
[408882677,1774386631849,-242.61681453,0.00013921,2]
[408882678,1774386631873,-242.61681453,0.00013921,2]
[408882680,1774386631890,-8237.56,0.00013922,2]
[408882681,1774386631903,-242.61681453,0.00013922,2]
[408882682,1774386631915,-150.0,0.00013973,2]
[408882683,1774386631925,-888.0,0.00014147,2]
[408882684,1774386631935,-723.0,0.00014152,2]
[408882685,1774386631944,-307.0,0.00014176,2]
[408882686,1774386631953,-600.0,0.0001419,2]
[408882687,1774386631963,-426.0,0.00014205,2]
[408882688,1774386631972,-310.0,0.00014233,2]
[408882689,1774386631982,-150.0,0.00014247,2]
[408882690,1774386631991,-600.0,0.000143,2]
[408882691,1774386632000,-300.0,0.000143,2]
[408882692,1774386632010,-300.0,0.000143,2]
[408882693,1774386632019,-302.87275784,0.000143,2]